bitfinex/quotes_ETHUSD_20250217
["timestamp","ask_amount","ask_price","bid_price","bid_amount"]
[1739780386003,3.98059,2697.9,2697.4,0.8177]
[1739780386004,3.70675,2697.8,2697.4,0.8177]
[1739780386402,4.46629,2697.9,2697.3,3.54229555]
[1739780386601,3.7068,2697.8,2697.3,3.54229555]
[1739780386844,3.7068,2697.8,2697.3,7.24966555]
[1739780387148,4.46629,2697.9,2697.4,3.70719]
[1739780387295,3.70672,2697.8,2697.3,7.24966555]
[1739780387900,4.46629,2697.9,2697.4,3.70726]
[1739780388349,0.7597,2697.9,2697.5,3.70706]
[1739780388751,4.46629,2697.9,2697.5,3.70706]
[1739780389109,4.46629,2697.9,2697.3,7.24958555]
[1739780389110,3.70674,2697.8,2697.3,7.24958555]
[1739780390352,3.70699,2697.7,2697.3,3.54229555]
[1739780390554,3.70723,2697.5,2697.0,4.47803]
[1739780391453,3.70747,2697.3,2696.8,8.02060555]
[1739780391607,4.19298,2697.4,2696.9,3.70795]
[1739780391806,3.70744,2697.3,2696.8,8.02060555]
[1739780392107,3.7078,2697.1,2696.6,3.54229555]
[1739780392328,3.9818,2697.1,2696.6,7.25066555]
[1739780392622,3.70812,2696.8,2696.3,4.479]
[1739780392830,3.70812,2696.8,2696.2,3.7088]
[1739780392831,3.70831,2696.7,2696.2,3.7088]
[1739780393038,3.70812,2696.8,2696.2,3.7088]
[1739780393559,7.41631,2696.8,2696.2,3.7088]
[1739780394066,3.70812,2696.8,2696.3,3.7087]
[1739780394769,7.41632,2696.8,2696.2,3.7088]
[1739780394934,3.70812,2696.8,2696.3,3.70877]
[1739780395138,3.70812,2696.8,2696.2,7.4176]
[1739780395455,3.70812,2696.8,2696.2,3.7088]
[1739780395837,3.70812,2696.8,2696.2,7.41765]
[1739780396038,3.70812,2696.8,2696.2,8.59067456]
[1739780396356,4.19358,2697.0,2696.3,3.70871]
[1739780396764,0.4857,2697.0,2696.2,1.17302456]
[1739780396969,3.7082,2696.8,2696.2,8.59067456]
[1739780397181,3.7082,2696.8,2696.3,3.70871]
[1739780397559,3.7082,2696.8,2696.2,4.88183456]
[1739780398082,3.7082,2696.8,2696.2,8.59065456]
[1739780398405,3.70823,2696.7,2696.2,1.17302456]
[1739780398713,3.70845,2696.6,2696.1,4.31259555]
[1739780398855,0.4857,2696.5,2696.1,3.54229555]
[1739780399456,0.4857,2696.5,2696.1,7.25133555]
[1739780400199,4.19394,2696.7,2696.2,3.70885]
[1739780400384,0.4857,2696.7,2696.2,3.70887]
[1739780400701,4.19394,2696.7,2696.2,3.70887]
[1739780401071,0.4857,2696.7,2696.2,3.70887]
[1739780401269,4.19401,2696.7,2696.2,3.70887]
[1739780401622,3.70837,2696.6,2696.2,3.70887]
[1739780401770,4.19399,2696.7,2696.2,3.70887]
[1739780402306,3.70844,2696.6,2696.1,7.25134555]
[1739780402458,4.19399,2696.7,2696.1,7.25134555]
[1739780402459,3.70853,2696.5,2696.1,3.54229555]
[1739780402660,4.19399,2696.7,2696.1,4.34685411]
[1739780402962,4.19399,2696.7,2696.2,3.70884]
[1739780403590,0.274,2696.6,2696.3,0.7941]
[1739780403802,0.274,2696.6,2696.3,4.5028]
[1739780404249,0.274,2696.6,2696.3,0.7941]
[1739780405605,0.274,2696.6,2696.3,4.50288]
[1739780405823,0.274,2696.6,2696.3,0.7941]
[1739780406018,3.70858,2696.5,2696.1,3.54229555]
[1739780406255,3.70866,2696.4,2696.1,3.54229555]
[1739780406419,3.70886,2696.3,2696.0,0.7941]
[1739780406620,3.70886,2696.3,2695.8,8.04577555]
[1739780407359,3.70894,2696.2,2695.8,8.04577555]
[1739780407976,3.70894,2696.2,2695.8,4.33639555]
[1739780407977,3.70914,2696.1,2695.8,4.33639555]
[1739780408471,3.70906,2696.1,2695.8,4.33639555]
[1739780408674,3.70954,2695.8,2695.6,0.3934503]
[1739780408884,3.98354,2695.8,2695.6,0.3934503]
[1739780409176,3.70961,2695.7,2695.6,0.3934503]
[1739780411554,3.98348,2695.8,2695.6,0.3934503]
[1739780411767,3.70961,2695.7,2695.6,0.3934503]
[1739780411971,3.98348,2695.8,2695.6,0.3934503]
[1739780412168,3.98348,2695.8,2695.6,0.42831675]
[1739780412474,3.70961,2695.7,2695.6,0.42831675]
[1739780412950,3.98348,2695.8,2695.6,0.03486645]
[1739780413154,0.4857,2696.4,2695.6,0.7941]
[1739780413366,3.70905,2696.2,2695.6,4.50383]
[1739780413542,3.70922,2696.0,2695.7,0.03757839]
[1739780413742,3.70905,2696.2,2695.7,0.03757839]
[1739780413944,3.70918,2696.1,2695.7,0.03757839]
[1739780414160,3.70921,2696.0,2695.7,0.03757839]
[1739780414592,3.70901,2696.2,2695.7,0.03757839]
[1739780414740,3.70887,2696.3,2695.7,7.74727232]
[1739780414941,0.274,2696.1,2695.7,7.74727232]
[1739780415375,4.19441,2696.4,2695.7,7.74726232]
[1739780415542,0.274,2696.3,2695.8,3.70945]
[1739780415743,0.274,2696.3,2696.1,0.755]
[1739780415981,3.70844,2696.6,2696.1,0.755]
[1739780415982,0.274,2696.5,2696.1,0.755]
[1739780416396,3.70872,2696.4,2696.2,0.03740022]
[1739780416752,0.274,2696.5,2696.2,0.03740022]
[1739780417203,3.70814,2696.8,2696.2,0.8417788]
[1739780417490,0.274,2696.7,2696.3,3.70877]
[1739780417644,0.274,2696.7,2696.3,3.70872]
[1739780418163,0.274,2696.7,2696.4,0.03740022]
[1739780418490,0.4857,2697.3,2696.5,0.755]
[1739780418689,3.98177,2697.1,2696.6,3.54229555]
[1739780418896,3.98177,2697.1,2696.6,3.57939888]
[1739780419412,0.274,2697.1,2696.7,0.03707913]
[1739780419707,3.98169,2697.1,2696.8,0.0369422]
[1739780420076,3.98169,2697.1,2696.6,7.25056555]
[1739780420278,3.98169,2697.1,2696.9,0.0369422]
[1739780420483,3.98169,2697.1,2696.6,7.25056555]
[1739780420677,3.98169,2697.1,2697.0,0.0369422]
[1739780420875,3.98169,2697.1,2696.6,8.46532606]
[1739780421077,4.46739,2697.1,2697.0,0.0369422]
[1739780421297,4.46739,2697.1,2696.3,4.29729555]
[1739780421298,3.70826,2696.7,2696.3,4.29729555]
[1739780422013,7.41608,2696.9,2696.3,4.29729555]
[1739780422800,7.41608,2696.9,2696.3,8.00606555]
[1739780423104,3.70786,2697.0,2696.4,3.70864]
[1739780423310,3.70786,2697.0,2696.5,4.50902356]
[1739780423474,3.70786,2697.0,2696.5,0.80059356]
[1739780423962,3.70786,2697.0,2696.5,4.50903356]
[1739780424406,3.70803,2696.9,2696.5,0.80059356]
[1739780424612,3.70803,2696.9,2696.4,3.70863]
[1739780426016,3.70803,2696.9,2696.3,8.00598555]
[1739780426320,0.274,2697.1,2696.3,4.29729555]
[1739780426529,3.7083,2696.7,2696.3,4.29729555]
[1739780426831,3.7083,2696.7,2696.4,0.0361364]
[1739780430420,4.19375,2696.9,2696.4,0.0361364]
[1739780430634,4.19375,2696.9,2696.4,3.7447164]
[1739780430850,7.41609,2696.9,2696.4,3.7447164]
[1739780431221,3.70816,2696.8,2696.4,0.0361364]
[1739780431423,7.41661,2696.7,2696.4,0.0361364]
[1739780431955,7.41664,2696.7,2696.4,0.0361364]
[1739780432109,3.7083,2696.7,2696.4,0.0361364]
[1739780432304,3.7083,2696.7,2696.4,0.08628345]
[1739780433656,3.70837,2696.6,2696.4,0.08628345]
[1739780435011,3.70837,2696.6,2696.4,0.08628345]
[1739780435246,3.70835,2696.7,2696.4,0.08628345]
[1739780435550,3.7084,2696.6,2696.4,0.08628345]
[1739780437755,3.70832,2696.7,2696.4,0.08628345]
[1739780438734,3.70812,2696.8,2696.4,0.08628345]
[1739780439453,3.70851,2696.5,2696.4,0.08628345]
[1739780439655,3.70851,2696.5,2696.0,8.00467555]
[1739780439812,3.70869,2696.4,2696.0,4.29549555]
[1739780440013,3.70851,2696.5,2696.0,4.29549555]
[1739780440227,3.70874,2696.4,2696.0,0.7532]
[1739780440459,3.70933,2695.9,2695.5,0.7532]
[1739780441432,3.70933,2695.9,2695.4,3.54229555]
[1739780441433,3.70954,2695.8,2695.6,0.08270178]
[1739780441638,3.70961,2695.7,2695.3,4.29549555]
[1739780441807,3.70933,2695.9,2695.7,0.08270178]
[1739780442010,3.70941,2695.9,2695.3,8.00562555]
[1739780442240,3.70951,2695.8,2695.3,9.19208632]
[1739780443569,7.41909,2695.8,2695.3,9.19208632]
[1739780443709,3.70951,2695.8,2695.3,9.19208632]
[1739780445258,3.70963,2695.7,2695.3,4.29549555]
[1739780446134,0.4857,2696.1,2695.3,4.29549555]
[1739780446335,4.19586,2695.3,2695.2,0.1486421]
[1739780446564,4.46986,2695.3,2695.2,0.1486421]
[1739780446750,4.89171571,2695.3,2695.2,0.1486421]
[1739780447595,17.18271571,2695.3,2695.2,2.1e-06]
[1739780447882,18.10692818,2695.3,2695.2,2.1e-06]
[1739780448035,17.91819008,2695.3,2695.2,2.1e-06]
[1739780448237,7.89171571,2695.3,2695.2,2.1e-06]
[1739780448582,17.18371571,2695.3,2695.2,2.1e-06]
[1739780450183,19.18371571,2695.3,2695.2,2.1e-06]
[1739780451687,25.17371571,2695.3,2695.2,2.1e-06]
[1739780452064,3.7118,2694.2,2694.0,0.7763]
[1739780452267,0.274,2694.1,2694.0,0.7763]
[1739780452977,0.274,2694.1,2693.7,3.71228]
[1739780453181,0.274,2694.1,2693.8,0.7763]
[1739780453389,3.98586,2694.1,2693.8,0.7763]
[1739780453743,3.98586,2694.1,2693.6,0.7763]
[1739780453744,7.69776,2694.1,2693.6,0.7763]
[1739780453973,3.71195,2694.0,2693.6,0.7763]
[1739780454684,3.71209,2693.9,2693.6,0.7763]
[1739780455083,3.71195,2694.0,2693.6,0.7763]
[1739780455389,0.274,2694.1,2693.7,3.71228]
[1739780455995,3.71148,2694.4,2693.8,3.71213]
[1739780456285,3.71148,2694.4,2693.7,3.71228]
[1739780456286,0.274,2694.0,2693.9,4.48839]
[1739780456461,0.274,2694.0,2693.9,4.56954997]
[1739780456661,0.274,2694.0,2693.9,0.85745997]
[1739780457291,6.7112,2694.6,2693.9,4.56942997]
[1739780457459,0.274,2694.5,2693.9,0.89457649]
[1739780457782,0.274,2694.4,2694.2,3.71166]
[1739780458092,3.71089,2694.8,2694.3,4.56893058]
[1739780458390,0.274,2694.5,2694.3,0.85740058]
[1739780458959,0.4857,2695.1,2694.4,3.7114]
[1739780459163,3.71067,2695.0,2694.5,0.08101574]
[1739780459363,7.69533,2695.0,2694.5,0.08101574]
[1739780460091,0.274,2694.9,2694.7,0.8215]
[1739780460290,0.274,2694.9,2694.7,4.53241]
[1739780460498,0.274,2694.9,2694.8,0.08091393]
[1739780460914,0.274,2694.9,2694.5,0.8215]
[1739780461125,0.274,2694.9,2694.8,0.08091393]
[1739780461326,4.383239,2694.9,2694.5,0.8215]
[1739780461531,4.383169,2694.9,2694.8,0.08091393]
[1739780461684,4.383169,2694.9,2694.5,0.8215]
[1739780461892,3.98471,2694.9,2694.5,0.8215]
[1739780462224,3.98471,2694.9,2694.6,0.08071883]
[1739780462621,3.71087,2694.8,2694.6,0.08071883]
[1739780462829,3.98471,2694.9,2694.6,0.08071883]
[1739780463437,3.71098,2694.7,2694.6,0.08071883]
[1739780463610,3.71085,2694.8,2694.2,0.8215]
[1739780463816,0.274,2694.9,2694.3,0.08071883]
[1739780463817,3.71112,2694.6,2694.3,0.08071883]
[1739780465033,3.71092,2694.8,2694.3,0.08071883]
[1739780465360,7.42187,2694.8,2694.3,3.79223883]
[1739780465568,3.71106,2694.7,2694.3,0.08071883]
[1739780465762,3.71116,2694.6,2694.3,0.08071883]
[1739780465975,3.71126,2694.5,2694.3,0.08071883]
[1739780466478,3.7114,2694.4,2694.3,0.08071883]
[1739780466971,3.71191,2694.1,2693.7,0.8029]
[1739780467121,0.274,2694.0,2693.7,0.8029]
[1739780467322,0.274,2694.0,2693.8,0.08044738]
[1739780467722,0.274,2694.0,2693.7,0.8029]
[1739780467723,0.274,2694.0,2693.7,4.51526]
[1739780467967,0.274,2694.0,2693.9,0.08044738]
[1739780468172,0.274,2694.0,2693.7,4.51526]
[1739780468374,0.274,2694.0,2693.9,0.08044738]
[1739780468870,0.274,2694.0,2693.7,4.51526]
[1739780469050,0.274,2694.0,2693.9,0.08044738]
[1739780469367,0.274,2694.0,2693.7,0.8029]
[1739780469572,3.71103,2694.7,2694.0,3.71184]
[1739780469734,3.274,2694.6,2693.9,3.71207]
[1739780469944,3.71134,2694.5,2694.1,0.08044738]
[1739780470150,3.71134,2694.5,2694.0,0.8029]
[1739780470354,3.71134,2694.5,2694.2,0.08044738]
[1739780470556,3.4857,2694.8,2694.0,0.8029]
[1739780470557,0.274,2694.4,2694.0,0.8029]
[1739780470737,0.274,2694.4,2694.3,0.08044738]
[1739780470957,0.274,2694.4,2694.2,3.71167]
[1739780471128,0.274,2694.4,2694.3,0.08044738]
[1739780472287,3.4857,2694.8,2694.4,3.71138]
[1739780472490,0.274,2694.7,2694.4,4.51429]
[1739780472888,0.274,2694.7,2694.5,0.08044738]
[1739780473527,3.71112,2694.6,2694.5,0.08044738]
[1739780473889,3.71112,2694.6,2694.2,0.8029]
[1739780474088,3.71112,2694.6,2694.5,0.08044738]
[1739780474335,3.71112,2694.6,2694.2,0.8029]
[1739780474636,3.985,2694.7,2694.2,4.51453]
[1739780474833,3.985,2694.7,2694.2,0.8029]
[1739780475014,3.985,2694.7,2694.3,0.08044738]
[1739780475889,8.465678,2694.7,2694.3,0.08044738]
[1739780476085,0.274,2694.7,2694.4,3.71139]
[1739780476329,0.274,2694.7,2694.2,0.8029]
[1739780476514,0.274,2694.7,2694.6,0.7772]
[1739780476717,0.274,2694.7,2694.6,4.48832]
[1739780476888,0.274,2694.7,2694.6,4.56887763]
[1739780477383,4.19607,2695.2,2694.7,3.71093]
[1739780477589,0.274,2695.1,2694.7,3.71093]
[1739780477803,0.274,2695.1,2694.6,4.48823]
[1739780478037,3.83281857,2695.2,2694.8,0.08055763]
[1739780478238,0.274,2695.0,2694.6,4.48823]
[1739780478535,3.98464,2695.0,2694.9,0.08055763]
[1739780478731,3.98464,2695.0,2694.6,0.7772]
[1739780478935,3.98464,2695.0,2694.9,0.08055763]
[1739780479445,0.274,2695.0,2694.7,3.71097]
[1739780479643,0.274,2695.0,2694.9,0.08055763]
[1739780479847,0.274,2695.0,2694.6,4.48831]
[1739780480043,0.274,2695.0,2694.9,0.08055763]
[1739780480248,0.274,2695.0,2694.7,3.71096]
[1739780480552,3.98457,2695.0,2694.9,0.08055763]
[1739780480754,4.71074043,2695.0,2694.6,4.48831]
[1739780481056,0.274,2694.9,2694.6,4.48831]
[1739780481247,0.274,2694.9,2694.7,3.79144763]
[1739780482155,0.274,2694.9,2694.8,3.71085]
[1739780482449,0.274,2694.9,2694.6,4.48831]
[1739780482634,0.274,2694.9,2694.8,0.08055763]
[1739780482835,0.274,2694.9,2694.6,4.48831]
[1739780483034,0.274,2694.9,2694.8,0.08055763]
[1739780483237,0.274,2694.9,2694.6,4.48831]
[1739780483411,0.274,2694.9,2694.8,0.08055763]
[1739780483613,0.274,2694.9,2694.6,0.7772]
[1739780483839,0.274,2694.9,2694.8,0.08055763]
[1739780484019,0.274,2694.9,2694.6,0.7772]
[1739780484243,0.274,2694.9,2694.8,0.08055763]
[1739780484560,0.274,2694.9,2694.6,4.4883]
[1739780484711,0.274,2694.9,2694.8,0.08055763]
[1739780485054,12.53554,2695.6,2694.9,0.7772]
[1739780485358,0.274,2695.2,2695.0,7.25278555]
[1739780485509,0.274,2695.2,2695.0,11.04384318]
[1739780485711,0.274,2695.2,2695.0,7.33334318]
[1739780485955,0.274,2695.2,2695.0,8.59826967]
[1739780486114,0.274,2695.2,2695.0,4.88777967]
[1739780486311,3.98438,2695.2,2695.0,0.08055763]
[1739780486544,3.71043,2695.1,2695.0,0.08055763]
[1739780486907,3.7107,2695.0,2694.5,0.7772]
[1739780487336,3.71057,2695.0,2694.5,4.48846]
[1739780487543,3.71043,2695.1,2694.7,3.71094]
[1739780487709,3.98431,2695.2,2694.7,3.71094]
[1739780487928,3.71024,2695.3,2694.7,8.07316055]
[1739780488255,0.274,2695.5,2695.1,3.71036]
[1739780488464,0.274,2695.5,2695.2,4.48749]
[1739780488662,3.70977,2695.6,2695.2,0.7772]
[1739780488960,0.274,2695.5,2695.3,3.71015]
[1739780489657,0.4857,2696.3,2695.5,3.7098]
[1739780489857,0.274,2695.8,2695.6,0.8144]
[1739780490950,3.98347,2695.8,2695.6,0.8144]
[1739780491152,3.98347,2695.8,2695.3,7.25239555]
[1739780491352,3.98347,2695.8,2695.4,0.8144]
[1739780491554,3.70968,2695.7,2695.4,0.8144]
[1739780491748,3.70977,2695.6,2695.1,4.52471]
[1739780492478,1.04327,2695.8,2695.1,4.52471]
[1739780492784,1.04327,2695.8,2695.3,3.71004]
[1739780493451,0.274,2695.7,2695.4,3.71001]
[1739780493647,0.274,2695.7,2695.2,4.26023]
[1739780494184,0.274,2695.7,2695.3,3.71005]
[1739780494486,3.70949,2695.8,2695.3,3.71013]
[1739780494661,0.274,2695.7,2695.4,3.71002]
[1739780494973,0.274,2695.7,2695.5,0.8144]
[1739780495846,3.98371,2695.7,2695.5,0.8144]
[1739780496052,0.274,2695.7,2695.5,0.8144]
[1739780496252,0.274,2695.7,2695.5,4.52423]
[1739780496966,7.90368,2696.2,2695.6,3.70974]
[1739780497133,0.274,2696.1,2695.8,3.70936]
[1739780497338,0.274,2696.1,2695.6,10.96159555]
[1739780497981,0.274,2696.1,2695.7,3.70957]
[1739780498189,0.274,2696.1,2695.6,7.25190555]
[1739780498367,0.274,2696.1,2695.6,3.54229555]
[1739780498690,0.274,2696.1,2695.5,0.8144]
[1739780498691,3.7093,2696.0,2695.5,0.8144]
[1739780498891,3.70942,2695.9,2695.5,0.8144]
[1739780499396,1.254943,2696.0,2695.2,0.7504]
[1739780499693,3.7101,2695.4,2695.0,0.7504]
[1739780499900,0.274,2695.3,2695.0,0.7504]
[1739780501161,0.274,2695.3,2695.0,4.46095]
[1739780501561,0.274,2695.3,2695.1,0.07880251]
[1739780502532,3.71029,2695.2,2695.1,0.07880251]
[1739780502731,4.19599,2695.2,2695.1,0.07880251]
[1739780502891,4.19599,2695.2,2694.5,0.7504]
[1739780502892,3.7106,2695.0,2694.5,0.7504]
[1739780503828,4.19599,2695.2,2694.6,3.71112]
[1739780504034,0.4857,2695.2,2694.5,4.29269555]
[1739780504332,0.274,2695.1,2694.8,3.71084]
[1739780504630,0.274,2695.1,2694.6,4.14036956]
[1739780504631,0.274,2695.1,2694.6,7.85137956]
[1739780504934,0.274,2695.1,2694.7,3.71097]
[1739780505085,0.274,2695.1,2694.6,4.14027956]
[1739780505286,3.71066,2695.0,2694.5,4.29269555]
[1739780505533,7.42132,2695.0,2694.5,4.29269555]
[1739780505858,3.71066,2695.0,2694.5,4.29269555]
[1739780506456,0.274,2695.1,2694.6,3.71099]
[1739780507646,0.274,2695.1,2694.6,7.42204]
[1739780507820,0.274,2695.1,2694.6,3.71099]
[1739780508627,3.98451,2695.1,2694.6,3.71099]
[1739780509352,0.274,2695.1,2694.6,3.71099]
[1739780509759,3.98446,2695.1,2694.6,3.71099]
[1739780510260,3.98445,2695.1,2694.6,3.71099]
[1739780510760,0.274,2695.1,2694.6,7.42201]
[1739780510960,0.274,2695.1,2694.9,3.71064]
[1739780511114,0.274,2695.1,2694.9,4.51904]
[1739780511318,0.274,2695.1,2694.9,0.8084]
[1739780512359,0.274,2695.1,2694.9,4.51902]
[1739780512520,0.274,2695.1,2695.0,3.71057]
[1739780513296,0.274,2695.1,2694.9,4.51902]
[1739780514074,0.274,2695.1,2694.9,4.519]
[1739780514373,0.274,2695.1,2694.9,5.32512956]
[1739780514673,0.274,2695.2,2694.9,9.03576956]
[1739780514875,0.274,2695.2,2694.9,5.32512956]
[1739780515738,0.274,2695.2,2694.9,9.03575956]
[1739780516250,0.274,2695.2,2695.1,3.71043]
[1739780516438,0.274,2695.2,2695.1,0.07961629]
[1739780516638,0.274,2695.2,2694.9,1.61452956]
[1739780516940,0.274,2695.2,2695.0,0.07961629]
[1739780517586,0.72554149,2695.9,2695.0,0.97433543]
[1739780517587,0.4857,2695.8,2695.0,0.97433543]
[1739780517880,0.274,2695.3,2695.0,3.79005629]
[1739780518938,0.274,2695.3,2695.0,0.07961629]
[1739780519674,0.274,2695.3,2695.0,3.79016629]
[1739780519889,0.274,2695.3,2695.0,0.07961629]
[1739780520788,3.98425,2695.3,2695.0,0.07961629]
[1739780520939,3.71043,2695.1,2695.0,0.07961629]
[1739780521384,3.71043,2695.1,2694.6,0.7637]
[1739780521567,3.71043,2695.1,2695.0,0.07641027]
[1739780521766,3.71058,2695.0,2694.6,0.7637]
[1739780522441,3.71073,2694.9,2694.2,3.73189894]
[1739780522640,0.7597,2695.3,2694.2,3.71161]
[1739780522641,4.19675,2694.7,2694.2,3.71161]
[1739780522986,0.4857,2694.7,2694.2,3.71161]
[1739780523189,3.71097,2694.8,2694.2,3.71161]
[1739780523353,3.71105,2694.7,2694.2,3.71161]
[1739780523539,3.71097,2694.8,2694.3,3.71143]
[1739780523737,0.4857,2694.9,2694.2,3.71158]
[1739780523985,3.71092,2694.8,2694.2,3.71158]
[1739780524198,3.71099,2694.7,2694.2,3.71158]
[1739780524691,3.71106,2694.7,2694.1,8.01770555]
[1739780524886,3.71085,2694.8,2694.2,3.71159]
[1739780525093,0.4857,2694.9,2694.2,3.71159]
[1739780525241,3.71042,2695.2,2694.6,3.71102]
[1739780525444,0.274,2695.1,2694.7,0.7637]
[1739780525750,0.274,2695.1,2694.8,3.71074]
[1739780525953,0.274,2695.1,2694.7,4.75346755]
[1739780525954,4.19553,2695.6,2695.0,3.71057]
[1739780526159,3.98389,2695.5,2695.0,3.71057]
[1739780526665,0.274,2695.5,2694.9,3.71071]
[1739780526837,3.71005,2695.4,2694.7,8.01692555]
[1739780527041,3.71005,2695.4,2694.8,3.71078]
[1739780527437,3.71002,2695.4,2694.7,8.01692555]
[1739780527658,3.71002,2695.4,2694.9,3.71064]
[1739780528266,3.7103,2695.2,2694.7,4.47463]
[1739780528472,3.71071,2694.9,2694.4,8.01737555]
[1739780529409,3.71064,2695.0,2694.5,3.71118]
[1739780530077,3.71064,2695.0,2694.4,4.30599555]
[1739780530078,3.71078,2694.9,2694.4,8.01738555]
[1739780530283,3.71078,2694.9,2694.4,9.19027311]
[1739780530476,3.71078,2694.9,2694.4,5.47888311]
[1739780530670,3.71085,2694.8,2694.4,5.47888311]
[1739780530871,3.71085,2694.8,2694.4,9.19027311]
[1739780531303,3.71067,2695.0,2694.4,9.19021311]
[1739780531512,3.71067,2695.0,2694.5,3.78769261]
[1739780531801,3.71073,2694.9,2694.5,0.07645261]
[1739780532612,3.71035,2695.2,2694.7,3.71095]
[1739780532768,3.71035,2695.2,2694.7,7.42182]
[1739780533104,3.71035,2695.2,2694.5,1.00311818]
[1739780533105,0.274,2695.1,2694.8,0.07676593]
[1739780533309,3.71035,2695.2,2694.7,3.71096]
[1739780533493,0.274,2695.1,2694.9,0.07676593]
[1739780533694,0.274,2695.1,2694.7,3.71096]
[1739780533897,0.274,2695.1,2695.0,0.07676593]
[1739780534061,0.274,2695.1,2694.8,0.7687]
[1739780534263,0.274,2695.1,2695.0,0.07676593]
[1739780534505,0.274,2695.1,2694.8,4.47945]
[1739780534702,0.274,2695.1,2695.0,0.07676593]
[1739780534919,0.274,2695.1,2694.8,4.47945]
[1739780535081,0.274,2695.1,2695.0,0.07676593]
[1739780535283,0.274,2695.1,2694.8,4.47954]
[1739780535470,0.274,2695.1,2695.0,0.07676593]
[1739780535670,0.274,2695.1,2694.9,3.71064]
[1739780535900,0.274,2695.1,2695.0,0.07676593]
[1739780536094,0.274,2695.2,2695.0,0.07676593]
[1739780536438,0.274,2695.2,2694.8,5.65276756]
[1739780536643,0.274,2695.2,2695.1,0.07676593]
[1739780536944,0.274,2695.2,2694.9,3.71063]
[1739780537125,0.274,2695.2,2695.1,0.07676593]
[1739780537325,0.274,2695.2,2694.9,3.71063]
[1739780537511,0.274,2695.2,2695.1,0.07676593]
[1739780537710,0.274,2695.2,2695.1,3.71043]
[1739780537914,0.274,2695.2,2695.1,0.07676593]
[1739780538111,0.274,2695.2,2694.8,4.47945]
[1739780538313,0.274,2695.2,2695.1,0.07676593]
[1739780538514,0.274,2695.2,2694.9,3.7107]
[1739780538707,0.274,2695.2,2695.1,0.07676593]
[1739780538929,0.274,2695.2,2694.9,3.7107]
[1739780539232,0.274,2695.2,2695.1,0.07676593]
[1739780539391,0.274,2695.2,2694.9,3.7107]
[1739780539593,0.274,2695.2,2695.1,0.07676593]
[1739780540100,0.274,2695.2,2694.9,4.96416201]
[1739780540353,0.274,2695.2,2695.1,0.07676593]
[1739780540636,0.274,2695.2,2694.9,4.96416201]
[1739780541145,0.274,2695.2,2695.0,0.07676593]
[1739780541438,0.274,2695.2,2695.0,3.78731593]
[1739780541642,0.274,2695.3,2695.0,3.78731593]
[1739780542838,0.274,2695.3,2695.0,0.07676593]
[1739780543039,0.274,2695.3,2695.0,3.78732593]
[1739780543236,0.274,2695.3,2694.9,3.71068]
[1739780543612,0.274,2695.3,2695.0,0.07646953]
[1739780544039,3.98427,2695.3,2694.8,4.47946]
[1739780544459,3.98428,2695.3,2694.9,0.07646953]
[1739780544664,4.50596599,2695.3,2694.9,0.07646953]
[1739780544829,3.71039,2695.2,2694.7,3.54229555]
[1739780545016,3.71039,2695.2,2694.8,0.07646953]
[1739780545215,3.71039,2695.2,2694.7,7.25327555]
[1739780545460,3.71039,2695.2,2694.8,0.07646953]
[1739780545461,0.4857,2695.2,2694.8,0.07646953]
[1739780545756,3.7108,2694.9,2694.3,0.7687]
[1739780545956,3.71086,2694.8,2694.3,1.5894909]
[1739780546259,3.71086,2694.8,2694.3,5.3010209]
[1739780546462,3.71059,2695.0,2694.4,3.71139]
[1739780546613,3.71059,2695.0,2694.4,0.07381718]
[1739780546813,3.71078,2694.9,2694.4,0.07381718]
[1739780547229,3.71088,2694.8,2694.4,0.07381718]
[1739780547651,3.71106,2694.7,2694.4,0.07381718]
[1739780547814,3.71126,2694.5,2694.4,0.07381718]
[1739780548009,0.274,2694.5,2694.4,0.07381718]
[1739780548213,0.274,2694.5,2694.1,8.02279555]
[1739780548629,0.274,2694.5,2694.2,0.07413897]
[1739780551494,0.274,2694.5,2694.3,3.71152]
[1739780551704,0.274,2694.5,2694.3,3.74851311]
[1739780551848,0.74413245,2694.9,2694.6,3.71104]
[1739780552051,1.01813245,2694.9,2694.5,3.71124]
[1739780552283,1.01813245,2694.9,2694.7,0.07427449]
[1739780552467,1.01813245,2694.9,2694.4,8.02624555]
[1739780552781,1.01813245,2694.9,2694.8,0.07427449]
[1739780552966,1.01813245,2694.9,2694.4,8.02624555]
[1739780553166,1.01813245,2694.9,2694.8,0.07427449]
[1739780553370,1.01813245,2694.9,2694.4,8.02624555]
[1739780553591,1.01813245,2694.9,2694.8,0.07427449]
[1739780553793,1.01813245,2694.9,2694.6,3.71107]
[1739780553994,1.01813245,2694.9,2694.8,0.07427449]
[1739780554200,0.274,2694.9,2694.7,0.371107]
[1739780554405,0.274,2694.9,2694.8,0.07427449]
[1739780554800,0.274,2694.9,2694.7,4.082017]
[1739780554968,0.274,2694.9,2694.8,0.84687449]
[1739780555591,0.274,2695.0,2694.8,0.84687449]
[1739780557604,0.274,2695.0,2694.8,0.07427449]
[1739780557902,0.274,2695.0,2694.6,0.7726]
[1739780558110,0.274,2695.0,2694.9,0.07417283]
[1739780558261,0.274,2695.0,2694.7,4.159295]
[1739780558485,0.274,2695.0,2694.9,0.07417283]
[1739780558685,0.274,2695.0,2694.8,3.71078]
[1739780558909,3.4857,2695.3,2694.8,3.71078]
[1739780558910,4.19594,2695.3,2694.9,0.07417283]
[1739780559312,0.274,2695.2,2694.9,3.78485283]
[1739780559515,0.274,2695.2,2694.9,0.07417283]
[1739780559826,4.19569,2695.5,2694.9,3.78481283]